bitfinex/quotes_BTCUSD_20251009
["timestamp","ask_amount","ask_price","bid_price","bid_amount"]
[1759993497548,0.00538299,122110.0,122100.0,0.28853016]
[1759993497762,0.00538299,122110.0,122100.0,0.51977016]
[1759993497925,0.00538299,122110.0,122100.0,0.77484712]
[1759993498783,0.00538299,122110.0,122100.0,0.54360712]
[1759993498956,0.00538299,122110.0,122100.0,0.77484712]
[1759993499367,0.00538299,122110.0,122100.0,0.77480712]
[1759993499825,0.00538299,122110.0,122100.0,0.45840712]
[1759993500021,0.00538299,122110.0,122100.0,0.77480712]
[1759993500539,0.02183299,122110.0,122100.0,0.50024016]
[1759993500764,0.18561973,122110.0,122100.0,0.41504016]
[1759993500966,0.18561973,122110.0,122100.0,0.50024016]
[1759993501167,0.02183299,122110.0,122100.0,0.26904016]
[1759993501365,0.00538299,122110.0,122100.0,0.50024016]
[1759993501569,0.00538299,122110.0,122100.0,0.51973016]
[1759993505046,0.00538299,122110.0,122100.0,0.77480712]
[1759993505288,0.00538299,122110.0,122100.0,0.77476712]
[1759993507236,0.00538299,122110.0,122100.0,0.54360712]
[1759993507466,0.00538299,122110.0,122100.0,1.02984408]
[1759993510311,0.00538299,122110.0,122100.0,0.77476712]
[1759993512113,0.00538299,122110.0,122100.0,0.20333016]
[1759993512314,0.00538299,122110.0,122100.0,0.51969016]
[1759993512534,0.00538299,122110.0,122100.0,0.77476712]
[1759993513538,0.00538299,122110.0,122100.0,0.45840712]
[1759993513736,0.00538299,122110.0,122100.0,0.77476712]
[1759993515373,0.00538299,122110.0,122100.0,0.45840712]
[1759993515588,0.00538299,122110.0,122100.0,0.77476712]
[1759993515822,0.00538299,122110.0,122100.0,0.77472712]
[1759993516013,0.00538299,122110.0,122100.0,0.54360712]
[1759993516140,0.00538299,122110.0,122100.0,0.77472712]
[1759993516588,0.00538299,122110.0,122100.0,0.29460696]
[1759993516736,0.16916973,122110.0,122100.0,0.41496016]
[1759993516942,0.00538299,122110.0,122100.0,0.50016016]
[1759993517144,0.00538299,122110.0,122100.0,0.51965016]
[1759993518086,0.16916973,122110.0,122100.0,0.18384016]
[1759993518288,0.44070669,122110.0,122100.0,0.50020016]
[1759993518551,0.45282669,122110.0,122100.0,0.50020016]
[1759993518800,0.19774973,122110.0,122100.0,0.50020016]
[1759993520554,0.19774973,122110.0,122100.0,0.18384016]
[1759993520717,0.19774973,122110.0,122100.0,0.50020016]
[1759993521122,0.45282669,122110.0,122100.0,0.50020016]
[1759993523893,0.45282669,122110.0,122100.0,0.26904016]
[1759993524053,0.45282669,122110.0,122100.0,0.50016016]
[1759993524704,0.53282349,122110.0,122100.0,0.02004]
[1759993524842,0.22147973,122110.0,122100.0,0.32132]
[1759993525042,0.48423265,122110.0,122100.0,0.32132]
[1759993525366,0.47655669,122110.0,122100.0,0.32132]
[1759993527713,0.47655669,122110.0,122100.0,0.48512016]
[1759993528480,0.47655669,122110.0,122100.0,0.0902]
[1759993528827,0.58427632,122110.0,122100.0,0.32132]
[1759993529365,0.58327632,122110.0,122100.0,0.31932]
[1759993529771,0.58327632,122110.0,122100.0,0.32032]
[1759993529772,0.58427632,122110.0,122100.0,0.32032]
[1759993530320,0.58427632,122110.0,122100.0,0.31732]
[1759993530321,0.58227632,122110.0,122100.0,0.31732]
[1759993530535,0.58727632,122110.0,122100.0,0.32032]
[1759993530954,1.26235008,122110.0,122100.0,0.004]
[1759993531160,1.27002345,122110.0,122100.0,0.004]
[1759993531357,1.28536515,122110.0,122100.0,0.004]
[1759993531574,1.31317023,122110.0,122100.0,0.004]
[1759993531773,1.28536515,122110.0,122100.0,0.004]
[1759993531968,1.03028819,122110.0,122100.0,0.004]
[1759993532173,1.34694545,122110.0,122100.0,0.08472]
[1759993532681,1.26694865,122110.0,122100.0,0.08472]
[1759993533085,1.26594865,122110.0,122100.0,0.08372]
[1759993533288,1.26094865,122110.0,122100.0,0.08072]
[1759993533692,1.27794865,122110.0,122100.0,0.08372]
[1759993534402,0.93793579,122110.0,122100.0,0.08372]
[1759993534542,0.93893579,122110.0,122100.0,0.08472]
[1759993534743,1.01893259,122110.0,122100.0,0.08472]
[1759993534984,1.01793259,122110.0,122100.0,0.08372]
[1759993535407,1.02493259,122110.0,122100.0,0.08472]
[1759993535961,1.02493259,122110.0,122100.0,0.004]
[1759993538313,1.02492664,122110.0,122100.0,0.004]
[1759993538495,1.00958494,122110.0,122100.0,0.004]
[1759993538913,1.02489176,122110.0,122100.0,0.004]
[1759993539544,1.36489176,122110.0,122100.0,0.004]
[1759993540471,1.59609176,122110.0,122100.0,0.004]
[1759993543078,1.36489176,122110.0,122100.0,0.004]
[1759993543280,1.59609176,122110.0,122100.0,0.004]
[1759993544824,1.36489176,122110.0,122100.0,0.004]
[1759993545458,1.59609176,122110.0,122100.0,0.004]
[1759993545683,1.36489176,122110.0,122100.0,0.004]
[1759993545829,1.59609176,122110.0,122100.0,0.004]
[1759993546234,1.59608567,122110.0,122100.0,0.004]
[1759993547280,1.36488567,122110.0,122100.0,0.004]
[1759993547467,1.59608567,122110.0,122100.0,0.004]
[1759993547666,1.36488567,122110.0,122100.0,0.004]
[1759993548300,0.16385384,122060.0,122050.0,0.07594503]
[1759993548521,0.4310108,122060.0,122050.0,0.39234503]
[1759993548740,0.55445286,122060.0,122050.0,0.07594503]
[1759993548952,0.57906052,122060.0,122050.0,0.39238503]
[1759993549215,0.57906052,122060.0,122050.0,0.32619]
[1759993549449,0.65455861,122060.0,122050.0,0.32634066]
[1759993549859,0.65955861,122060.0,122050.0,0.32634066]
[1759993550262,0.66055861,122060.0,122050.0,0.33234066]
[1759993550467,0.30556356,122060.0,122050.0,0.11630066]
[1759993550686,0.30556356,122060.0,122050.0,0.34754066]
[1759993550903,0.30556356,122060.0,122050.0,0.11630066]
[1759993551128,0.30556356,122060.0,122050.0,0.34754066]
[1759993551860,0.32998356,122060.0,122050.0,0.33234066]
[1759993552080,0.66199482,122060.0,122050.0,0.09135066]
[1759993552215,0.66199482,122060.0,122050.0,0.32259066]
[1759993553073,0.66099482,122060.0,122050.0,0.31659066]
[1759993553312,0.65599482,122060.0,122050.0,0.31659066]
[1759993553597,0.65599482,122060.0,122050.0,0.32059066]
[1759993553598,0.66099482,122060.0,122050.0,0.32059066]
[1759993557222,0.67630242,122060.0,122050.0,0.32059066]
[1759993557371,0.42122546,122060.0,122050.0,0.32059066]
[1759993557578,0.67630242,122060.0,122050.0,0.32059066]
[1759993558567,0.59936812,122060.0,122050.0,0.32059066]
[1759993558788,0.57476046,122060.0,122050.0,0.32059066]
[1759993559171,0.58241822,122060.0,122050.0,0.32161333]
[1759993559942,0.32734126,122060.0,122050.0,0.32161333]
[1759993560410,0.32734126,122060.0,122050.0,0.09037333]
[1759993560626,0.32734126,122060.0,122050.0,0.34656333]
[1759993560843,0.30292126,122060.0,122050.0,0.34656333]
[1759993563181,0.30292126,122060.0,122050.0,0.11532333]
[1759993563391,0.32734126,122060.0,122050.0,0.10012333]
[1759993563669,0.40733806,122060.0,122050.0,0.33132333]
[1759993563859,0.40733806,122060.0,122050.0,0.01492333]
[1759993564100,0.40735349,122060.0,122050.0,0.10012333]
[1759993564251,0.40735349,122060.0,122050.0,0.33132333]
[1759993565347,0.40735349,122060.0,122050.0,0.01492333]
[1759993565546,0.40735349,122060.0,122050.0,0.33132333]
[1759993566057,0.40635349,122060.0,122050.0,0.32732333]
[1759993566347,0.40335349,122060.0,122050.0,0.32932333]
[1759993566729,0.40835349,122060.0,122050.0,0.32932333]
[1759993567749,0.40835349,122060.0,122050.0,0.01292333]
[1759993567895,0.40835349,122060.0,122050.0,0.32936333]
[1759993569422,0.40836052,122060.0,122050.0,0.32936333]
[1759993569611,0.32836372,122060.0,122050.0,0.32936333]
[1759993570545,0.32836372,122060.0,122050.0,0.01292333]
[1759993570754,0.32836372,122060.0,122050.0,0.08841333]
[1759993570931,0.66880983,122060.0,122050.0,0.31961333]
[1759993571632,0.32836372,122060.0,122050.0,0.31961333]
[1759993571829,0.40836052,122060.0,122050.0,0.00317333]
[1759993572059,0.40836052,122060.0,122050.0,0.31961333]
[1759993574270,0.40836406,122060.0,122050.0,0.00317333]
[1759993574607,0.40836406,122060.0,122050.0,0.31381333]
[1759993575819,0.40836406,122060.0,122050.0,0.08841333]
[1759993576029,0.40836406,122060.0,122050.0,0.31961333]
[1759993576543,0.66881337,122060.0,122050.0,0.00317333]
[1759993576709,0.66881337,122060.0,122050.0,0.23437333]
[1759993577110,0.69342234,122060.0,122050.0,0.23437333]
[1759993577510,0.35297623,122060.0,122050.0,0.23437333]
[1759993577672,0.69342234,122060.0,122050.0,0.23437333]
[1759993577873,0.77341914,122060.0,122050.0,0.23437333]
[1759993578331,0.82341914,122060.0,122050.0,0.23437333]
[1759993578716,0.82345327,122060.0,122050.0,0.23437333]
[1759993579132,0.82345327,122060.0,122050.0,0.00317333]
[1759993579327,0.82345327,122060.0,122050.0,0.23437333]
[1759993583189,0.40301036,122060.0,122050.0,0.00317333]
[1759993583394,0.37859115,122060.0,122050.0,0.42329059]
[1759993583579,0.15448001,122060.0,122050.0,0.21154059]
[1759993583787,0.3029759,122060.0,122050.0,0.44278059]
[1759993585278,0.006,122060.0,122050.0,0.5519867]
[1759993585458,0.006,122060.0,122050.0,0.21154059]
[1759993585658,0.18578384,122060.0,122050.0,0.50853059]
[1759993586552,0.02193,122060.0,122050.0,0.50853059]
[1759993587352,0.006,122060.0,122050.0,0.50853059]
[1759993587567,0.006,122060.0,122050.0,0.29678059]
[1759993587974,0.006,122060.0,122050.0,0.6372267]
[1759993588393,0.006,122060.0,122050.0,0.52802059]
[1759993590367,0.006,122060.0,122050.0,0.29678059]
[1759993590596,0.006,122060.0,122050.0,0.52802059]
[1759993590863,0.006,122060.0,122050.0,0.29678059]
[1759993591091,0.16985384,122060.0,122050.0,0.02818333]
[1759993591285,0.16985384,122060.0,122050.0,0.50853059]
[1759993592121,0.16985384,122060.0,122050.0,0.19205059]
[1759993592340,0.16985384,122060.0,122050.0,0.50853059]
[1759993592555,0.006,122060.0,122050.0,0.50853059]
[1759993594135,0.006,122060.0,122050.0,0.52802059]
[1759993595683,0.006,122060.0,122050.0,0.29678059]
[1759993595888,0.006,122060.0,122050.0,0.52802059]
[1759993596419,0.006,122060.0,122050.0,0.6372267]
[1759993596613,0.006,122060.0,122050.0,0.8684667]
[1759993597880,0.006,122060.0,122050.0,0.9772267]
[1759993598079,0.006,122060.0,122050.0,1.2084667]
[1759993599756,0.006,122060.0,122050.0,1.29158876]
[1759993599933,0.006,122060.0,122050.0,1.32174066]
[1759993600608,0.005,122060.0,122050.0,1.31974066]
[1759993601041,0.00034243,122070.0,122060.0,0.50385384]
[1759993601211,0.00034243,122070.0,122060.0,0.86378995]
[1759993601425,0.00034243,122070.0,122060.0,0.88005995]
[1759993602502,0.00534243,122070.0,122060.0,1.11129995]
[1759993602704,0.00534243,122070.0,122060.0,1.19649995]
[1759993603430,0.00634243,122070.0,122060.0,1.19949995]
[1759993608405,0.00634243,122070.0,122060.0,1.08153391]
[1759993608624,0.00634243,122070.0,122060.0,1.31273391]
[1759993609272,0.00134243,122070.0,122060.0,1.31273391]
[1759993609410,0.00434243,122070.0,122060.0,1.31473391]
[1759993609617,0.00334243,122070.0,122060.0,1.31473391]
[1759993609819,0.00134243,122070.0,122060.0,1.31373391]
[1759993610276,0.00034243,122070.0,122060.0,1.30973391]
[1759993610501,0.00034243,122070.0,122060.0,1.22453391]
[1759993610679,0.00134243,122070.0,122060.0,1.65561391]
[1759993611234,0.00734243,122070.0,122060.0,1.65761391]
[1759993613136,0.00734243,122070.0,122060.0,1.57241391]
[1759993613348,0.00734243,122070.0,122060.0,1.65761391]
[1759993615506,0.00734243,122070.0,122060.0,1.42641391]
[1759993615711,0.00734243,122070.0,122060.0,1.65761391]
[1759993615857,0.00734243,122070.0,122060.0,1.7576139]
[1759993617338,0.00734243,122070.0,122060.0,1.7575739]
[1759993619387,0.00734243,122070.0,122060.0,1.78217056]
[1759993619830,0.00734243,122070.0,122060.0,1.78213056]
[1759993621291,0.00734243,122070.0,122060.0,1.12493056]
[1759993621466,0.00734243,122070.0,122060.0,1.78213056]
[1759993621926,0.00734243,122070.0,122060.0,2.20694038]
[1759993622301,0.00734243,122070.0,122060.0,0.78448445]
[1759993622613,0.00734243,122070.0,122060.0,1.72069507]
[1759993622797,0.00734243,122070.0,122060.0,1.95185507]
[1759993623417,0.00734243,122070.0,122060.0,1.52581507]
[1759993623662,0.00734243,122070.0,122060.0,1.95181507]
[1759993624107,0.00734243,122070.0,122060.0,1.72069507]
[1759993624316,0.00734243,122070.0,122060.0,1.95181507]
[1759993624516,0.00734243,122070.0,122060.0,1.93181507]
[1759993624689,0.00734243,122070.0,122060.0,2.18690038]
[1759993625097,0.00734243,122070.0,122060.0,1.87058038]
[1759993625344,0.00734243,122070.0,122060.0,2.18690038]
[1759993626629,0.00734243,122070.0,122060.0,1.95578038]
[1759993626836,0.00734243,122070.0,122060.0,2.18690038]
[1759993626976,0.00734243,122070.0,122060.0,1.95578038]
[1759993627182,0.00734243,122070.0,122060.0,2.18690038]
[1759993627656,0.00734243,122070.0,122060.0,2.10170038]
[1759993627875,0.00734243,122070.0,122060.0,1.49089842]
[1759993628019,0.00734243,122070.0,122060.0,1.80721842]
[1759993628654,0.00734243,122070.0,122060.0,1.57609842]
[1759993628860,0.00734243,122070.0,122060.0,1.80721842]
[1759993629921,0.00734243,122070.0,122060.0,1.57609842]
[1759993630137,0.00734243,122070.0,122060.0,1.80721842]
[1759993631496,0.00734243,122070.0,122060.0,2.06230373]
[1759993631857,0.00734243,122070.0,122060.0,1.83118373]
[1759993631993,0.00734243,122070.0,122060.0,1.80721842]
[1759993632861,0.00734243,122070.0,122060.0,1.15005842]
[1759993633086,0.00734243,122070.0,122060.0,1.80721842]
[1759993634988,0.00734243,122070.0,122060.0,1.72201842]
[1759993635235,0.00734243,122070.0,122060.0,1.80721842]
[1759993635473,0.00734243,122070.0,122060.0,1.15005842]
[1759993635688,0.00734243,122070.0,122060.0,1.80721842]
[1759993636411,0.00734243,122070.0,122060.0,1.57609842]
[1759993636640,0.00734243,122070.0,122060.0,1.80721842]
[1759993642345,0.00734243,122070.0,122060.0,1.38117842]
[1759993642499,0.00734243,122070.0,122060.0,1.80721842]
[1759993642701,0.00734243,122070.0,122060.0,1.57609842]
[1759993642868,0.00734243,122070.0,122060.0,1.80721842]
[1759993643475,0.00734243,122070.0,122060.0,1.15005842]
[1759993643677,0.00734243,122070.0,122060.0,1.57609842]
[1759993643876,0.00734243,122070.0,122060.0,1.80721842]
[1759993647417,0.00734243,122070.0,122060.0,1.57609842]
[1759993647670,0.00734243,122070.0,122060.0,1.80721842]
[1759993651730,0.00734243,122070.0,122060.0,1.57609842]
[1759993652116,0.00734243,122070.0,122060.0,1.80721842]
[1759993652779,0.00734243,122070.0,122060.0,0.89497311]
[1759993652999,0.00734243,122070.0,122060.0,1.54594652]
[1759993653220,0.00734243,122070.0,122060.0,1.81706652]
[1759993657333,0.00734243,122070.0,122060.0,1.07678446]
[1759993657551,0.00734243,122070.0,122060.0,1.73394446]
[1759993659309,0.00734243,122070.0,122060.0,1.22377384]
[1759993659524,0.00734243,122070.0,122060.0,1.73394446]
[1759993660713,0.00734243,122070.0,122060.0,1.47885915]
[1759993660883,0.00734243,122070.0,122060.0,1.73394446]
[1759993661484,0.00734243,122070.0,122060.0,1.07678446]
[1759993661787,0.00734243,122070.0,122060.0,1.30790446]
[1759993662007,0.00734243,122070.0,122060.0,1.50282446]
[1759993662210,0.00734243,122070.0,122060.0,1.73394446]
[1759993662434,0.00730243,122070.0,122060.0,1.73394446]
[1759993667925,0.00730243,122070.0,122060.0,1.74221954]
[1759993668423,0.00730243,122070.0,122060.0,0.82169915]
[1759993668618,0.00730243,122070.0,122060.0,1.73394446]
[1759993670921,0.00730243,122070.0,122060.0,1.07678446]
[1759993671125,0.00730243,122070.0,122060.0,1.47885915]
[1759993671408,0.00730243,122070.0,122060.0,1.73394446]
[1759993672445,0.00730243,122070.0,122060.0,1.07678446]
[1759993672656,0.00730243,122070.0,122060.0,0.80220915]
[1759993672806,0.00730243,122070.0,122060.0,1.11852915]
[1759993673010,0.00730243,122070.0,122060.0,1.39310446]
[1759993673534,0.00730243,122070.0,122060.0,1.13801915]
[1759993674937,0.00730243,122070.0,122060.0,0.82169915]
[1759993675136,0.00730243,122070.0,122060.0,1.13801915]
[1759993676577,0.00730243,122070.0,122060.0,1.39310446]
[1759993680532,0.00730243,122070.0,122060.0,1.16198446]
[1759993680739,0.00730243,122070.0,122060.0,1.39310446]
[1759993681204,0.00730243,122070.0,122060.0,0.65181384]
[1759993681416,0.00730243,122070.0,122060.0,1.39310446]
[1759993681971,0.00730243,122070.0,122060.0,1.16198446]
[1759993682183,0.00730243,122070.0,122060.0,0.88293384]
[1759993682391,0.00730243,122070.0,122060.0,1.39310446]
[1759993683851,0.00730243,122070.0,122060.0,0.88293384]
[1759993684029,0.00730243,122070.0,122060.0,1.22318645]
[1759993687771,0.00730243,122070.0,122060.0,0.56661384]
[1759993688065,0.00730243,122070.0,122060.0,0.90686645]
[1759993688269,0.00730243,122070.0,122060.0,1.22318645]
[1759993689649,0.00730243,122070.0,122060.0,0.90686645]
[1759993689853,0.00730243,122070.0,122060.0,0.99206645]
[1759993690057,0.00730243,122070.0,122060.0,1.22318645]
[1759993690275,0.00730243,122070.0,122060.0,0.99206645]
[1759993690605,0.00730243,122070.0,122060.0,1.22318645]
[1759993690741,0.00730243,122070.0,122060.0,0.99206645]
[1759993690936,0.00730243,122070.0,122060.0,1.22318645]
[1759993693041,0.00730243,122070.0,122060.0,0.88293384]
[1759993693245,0.00730243,122070.0,122060.0,1.22318645]
[1759993694586,0.00730243,122070.0,122060.0,0.99206645]
[1759993694796,0.00730243,122070.0,122060.0,1.22318645]
[1759993696462,0.00730243,122070.0,122060.0,1.10534041]
[1759993696667,0.00730243,122070.0,122060.0,1.33646041]
[1759993696807,0.00730243,122070.0,122060.0,1.36105917]
[1759993701507,0.00730243,122070.0,122060.0,1.70131178]
[1759993701715,0.00730243,122070.0,122060.0,1.12993917]
[1759993701930,0.00730243,122070.0,122060.0,1.36105917]
[1759993702169,0.00730243,122070.0,122060.0,1.59519176]
[1759993702170,1e-08,122070.0,122060.0,1.59519176]
[1759993702408,1e-08,122070.0,122060.0,1.82631176]
[1759993702781,1e-08,122070.0,122060.0,1.74209729]
[1759993703189,1e-08,122070.0,122060.0,1.97321729]
[1759993703388,1e-08,122070.0,122060.0,1.74209729]
[1759993703606,1e-08,122070.0,122060.0,1.97321729]
[1759993703861,1e-08,122070.0,122060.0,1.74209729]
[1759993704155,1e-08,122070.0,122060.0,1.73709729]
[1759993704390,1e-08,122070.0,122060.0,1.74509729]
[1759993704538,1e-08,122070.0,122060.0,1.29371207]
[1759993704956,1e-08,122070.0,122060.0,1.29571207]
[1759993705161,0.05754504,122120.0,122110.0,0.16378674]
[1759993705366,0.05754504,122120.0,122110.0,0.50623541]
[1759993705542,0.0600956,122120.0,122110.0,0.52458674]
[1759993705745,0.0600956,122120.0,122110.0,0.86483935]
[1759993705941,0.00255056,122120.0,122110.0,0.86483935]
[1759993706530,0.01355056,122120.0,122110.0,0.86583935]
[1759993706787,0.01355056,122120.0,122110.0,0.98288277]
[1759993707002,0.01355056,122120.0,122110.0,1.21400277]
[1759993707200,0.01455056,122120.0,122110.0,1.21500277]
[1759993707948,0.01455056,122120.0,122110.0,0.98388277]
[1759993708117,0.01455056,122120.0,122110.0,1.21500277]
[1759993709976,0.01455056,122120.0,122110.0,0.89868277]
[1759993710157,0.01455056,122120.0,122110.0,1.12159935]
[1759993710362,0.01455056,122120.0,122110.0,0.89051935]
[1759993710812,0.01455056,122120.0,122110.0,1.20679935]
[1759993711219,0.01455056,122120.0,122110.0,0.89051935]
[1759993711573,0.01455056,122120.0,122110.0,0.86654674]
[1759993711815,0.01455056,122120.0,122110.0,1.20679935]
[1759993712016,0.01455056,122120.0,122110.0,0.89051935]
[1759993712241,0.01455056,122120.0,122110.0,1.12159935]
[1759993712454,0.01455056,122120.0,122110.0,0.86654674]
[1759993713605,0.01455056,122120.0,122110.0,0.63546674]
[1759993713807,0.01455056,122120.0,122110.0,1.20679935]
[1759993716070,0.01455056,122120.0,122110.0,0.97571935]
[1759993716281,0.01455056,122120.0,122110.0,1.20679935]
[1759993720064,0.01455056,122120.0,122110.0,0.97571935]
[1759993720266,0.01455056,122120.0,122110.0,1.20679935]
[1759993720469,0.01455056,122120.0,122110.0,0.86654674]
[1759993722900,0.01455056,122120.0,122110.0,1.20679935]
[1759993726009,0.01455056,122120.0,122110.0,0.86654674]
[1759993726213,0.01455056,122120.0,122110.0,1.20679935]
[1759993726778,0.01455056,122120.0,122110.0,1.20671935]
[1759993727022,0.01455056,122120.0,122110.0,0.86646674]
[1759993727827,0.01455056,122120.0,122110.0,0.55026674]
[1759993728047,0.01455056,122120.0,122110.0,0.86646674]
[1759993732099,0.01455056,122120.0,122110.0,1.20671935]
[1759993734039,0.01455056,122120.0,122110.0,0.55026674]
[1759993734237,0.01455056,122120.0,122110.0,1.20671935]
[1759993734984,0.01455056,122120.0,122110.0,0.86646674]
[1759993735188,0.01455056,122120.0,122110.0,1.20671935]
[1759993735554,0.01455056,122120.0,122110.0,0.89051935]
[1759993735756,0.01455056,122120.0,122110.0,1.20671935]
[1759993735953,0.01455056,122120.0,122110.0,0.86646674]
[1759993742010,0.01455056,122120.0,122110.0,0.78130674]
[1759993742219,0.01455056,122120.0,122110.0,0.86646674]
[1759993742422,0.01455056,122120.0,122110.0,0.55026674]
[1759993742622,0.01455056,122120.0,122110.0,0.86646674]
[1759993745415,0.01455056,122120.0,122110.0,0.63542674]
[1759993745618,0.01455056,122120.0,122110.0,0.86646674]
[1759993745787,0.01455056,122120.0,122110.0,0.63542674]
[1759993746096,0.01455056,122120.0,122110.0,1.1214785]
[1759993746858,0.01455056,122120.0,122110.0,0.8904385]
[1759993747067,0.01455056,122120.0,122110.0,1.37649026]
[1759993747268,0.01455056,122120.0,122110.0,1.1214785]
[1759993747473,0.01455056,122120.0,122110.0,1.14545026]
[1759993747682,0.01455056,122120.0,122110.0,1.25872422]
[1759993748090,0.01455056,122120.0,122110.0,1.48976422]
[1759993748496,0.00255056,122120.0,122110.0,1.48776422]
[1759993748920,0.00655056,122120.0,122110.0,1.49076422]
[1759993749044,0.00355056,122120.0,122110.0,1.49076422]
[1759993749238,0.00255056,122120.0,122110.0,1.48776422]
[1759993749444,0.00555056,122120.0,122110.0,1.48776422]
[1759993750306,0.00555056,122120.0,122110.0,0.9777407]
[1759993750499,0.00555056,122120.0,122110.0,1.0874607]
[1759993750676,0.00555056,122120.0,122110.0,1.57351246]
[1759993750881,0.00655056,122120.0,122110.0,0.8955807]
[1759993751086,0.17193443,122140.0,122130.0,0.19720936]
[1759993751287,0.17193443,122140.0,122130.0,0.43799936]
[1759993751482,0.45370685,122150.0,122130.0,0.70864112]
[1759993751670,0.45420987,122150.0,122140.0,0.08516]
[1759993752070,0.47084987,122150.0,122140.0,0.08516]
[1759993753111,0.48184987,122150.0,122140.0,0.24990652]
[1759993753311,0.48184987,122150.0,122140.0,0.26553652]
[1759993753756,0.48184987,122150.0,122140.0,0.001]
[1759993754021,0.48184987,122150.0,122140.0,0.31716]
[1759993754492,0.48384987,122150.0,122140.0,0.31816]
[1759993754859,0.56384667,122150.0,122140.0,0.31816]
[1759993755933,0.48084987,122150.0,122140.0,0.31816]
[1759993757037,0.48237952,122150.0,122140.0,0.31816]
[1759993758262,0.56550158,122150.0,122140.0,0.233]
[1759993760790,0.56550158,122150.0,122140.0,0.002]
[1759993761018,0.56550158,122150.0,122140.0,0.233]
[1759993761148,0.31048982,122150.0,122140.0,0.233]
[1759993761357,0.56550158,122150.0,122140.0,0.233]
[1759993761736,0.64549838,122150.0,122140.0,0.002]
[1759993761860,0.90051014,122150.0,122140.0,0.233]
[1759993762068,0.92510158,122150.0,122140.0,0.233]
[1759993762269,0.84510478,122150.0,122140.0,0.002]
[1759993762471,0.59009302,122150.0,122140.0,0.233]
[1759993763154,0.59776088,122150.0,122140.0,0.233]
[1759993763355,0.59776088,122150.0,122140.0,0.002]
[1759993763356,0.8788695,122150.0,122140.0,0.002]
[1759993763560,0.8788695,122150.0,122140.0,0.233]
[1759993763745,1.2988663,122150.0,122140.0,0.002]
[1759993764124,1.31420304,122150.0,122140.0,0.002]
[1759993764317,1.2988663,122150.0,122140.0,0.002]
[1759993764528,1.31420152,122150.0,122140.0,0.002]
[1759993769566,1.3141946,122150.0,122140.0,0.002]
[1759993770752,1.28809774,122150.0,122140.0,0.002]
[1759993770938,1.51909774,122150.0,122140.0,0.002]
[1759993771372,1.28809774,122150.0,122140.0,0.002]
[1759993773805,1.51913774,122150.0,122140.0,0.002]
[1759993774205,1.51911262,122150.0,122140.0,0.002]
[1759993775949,1.28807262,122150.0,122140.0,0.002]
[1759993776352,1.51911262,122150.0,122140.0,0.002]
[1759993777122,1.28807262,122150.0,122140.0,0.002]
[1759993777332,1.51911262,122150.0,122140.0,0.002]
[1759993777753,1.54520948,122150.0,122140.0,0.002]
[1759993778799,1.51176004,122150.0,122140.0,0.002]
[1759993780369,1.48566318,122150.0,122140.0,0.002]
[1759993780772,1.48566167,122150.0,122140.0,0.002]
[1759993781053,1.93096167,122150.0,122140.0,0.002]
[1759993783483,1.96111357,122150.0,122140.0,0.002]
[1759993784367,1.73007357,122150.0,122140.0,0.002]
[1759993784562,1.96111357,122150.0,122140.0,0.002]
[1759993788060,1.73007357,122150.0,122140.0,0.002]
[1759993788268,1.96111357,122150.0,122140.0,0.002]
[1759993790620,1.73007357,122150.0,122140.0,0.002]
[1759993790816,1.96111357,122150.0,122140.0,0.002]
[1759993791594,1.73007357,122150.0,122140.0,0.002]
[1759993791823,1.96111357,122150.0,122140.0,0.002]
[1759993792492,1.93096167,122150.0,122140.0,0.002]
[1759993792663,1.85096487,122150.0,122140.0,0.002]
[1759993793437,1.61992487,122150.0,122140.0,0.002]
[1759993795542,1.85096487,122150.0,122140.0,0.002]
[1759993798279,1.34094135,122150.0,122140.0,0.002]
[1759993798527,1.93096167,122150.0,122140.0,0.002]
[1759993800923,1.85096487,122150.0,122140.0,0.002]
[1759993807300,1.8510109,122150.0,122140.0,0.002]
[1759993807866,1.68105681,122150.0,122140.0,0.002]
[1759993808502,1.45001681,122150.0,122140.0,0.002]
[1759993808698,1.68105681,122150.0,122140.0,0.002]
[1759993808910,1.68105681,122150.0,122140.0,0.022]
[1759993809112,1.76105361,122150.0,122140.0,0.022]
[1759993809505,1.76105361,122150.0,122140.0,0.021]
[1759993809506,1.75005361,122150.0,122140.0,0.021]
[1759993809705,1.76505361,122150.0,122140.0,0.023]
[1759993809939,1.76305361,122150.0,122140.0,0.022]
[1759993810157,1.74805361,122150.0,122140.0,0.02]
[1759993810357,1.78405361,122150.0,122140.0,0.024]
[1759993810732,1.77705361,122150.0,122140.0,0.023]
[1759993811322,1.79105361,122150.0,122140.0,0.025]
[1759993816043,1.79105274,122150.0,122140.0,0.025]
[1759993818263,1.56001274,122150.0,122140.0,0.025]
[1759993818461,1.79105274,122150.0,122140.0,0.025]
[1759993819378,1.82120461,122150.0,122140.0,0.025]
[1759993819578,1.17096147,122150.0,122140.0,1e-08]
[1759993819785,1.40200147,122150.0,122140.0,1e-08]
[1759993820196,2.84133783,122150.0,122140.0,1e-08]
[1759993820398,3.07237783,122150.0,122140.0,1e-08]
[1759993820601,3.09449516,122150.0,122140.0,1e-08]
[1759993821596,2.87145516,122150.0,122140.0,1e-08]
[1759993821938,3.10249516,122150.0,122140.0,1e-08]
[1759993823220,3.18877516,122150.0,122140.0,1e-08]
[1759993823442,3.23797516,122150.0,122140.0,1e-08]
[1759993823652,3.21585783,122150.0,122140.0,1e-08]
[1759993823856,3.23797516,122150.0,122140.0,1e-08]
[1759993824060,3.15169516,122150.0,122140.0,1e-08]
[1759993824444,2.83545516,122150.0,122140.0,1e-08]
[1759993824642,2.81333783,122150.0,122140.0,1e-08]
[1759993824985,3.47041783,122150.0,122140.0,1e-08]
[1759993827276,3.49253516,122150.0,122140.0,1e-08]
[1759993828310,0.50378674,122110.0,122100.0,0.00136435]
[1759993828630,1.26605748,122110.0,122100.0,0.00136435]
[1759993828773,1.28125748,122110.0,122100.0,0.00136435]
[1759993828976,1.33082116,122110.0,122100.0,0.00136435]
[1759993829589,1.34082116,122110.0,122100.0,0.00236435]
[1759993829755,1.10978116,122110.0,122100.0,0.00236435]
[1759993830010,1.0866843,122110.0,122100.0,0.00236435]
[1759993830144,1.37886561,122110.0,122100.0,0.00236435]
[1759993830740,1.14778561,122110.0,122100.0,0.00236435]
[1759993831148,1.37886561,122110.0,122100.0,0.00236435]
[1759993833489,1.14778561,122110.0,122100.0,0.00236435]
[1759993833674,1.82416561,122110.0,122100.0,0.00236435]
[1759993834078,1.14778561,122110.0,122100.0,0.00236435]
[1759993834307,1.37886561,122110.0,122100.0,0.00236435]
[1759993834487,1.14778561,122110.0,122100.0,0.00236435]
[1759993834722,1.37886561,122110.0,122100.0,0.00236435]
[1759993834926,1.14778561,122110.0,122100.0,0.00236435]